[Event "MCCT Chessable Masters 2022"]
[Site "Online"]
[Date "2022.05.16"]
[Round "13.1"]
[White "Ding, Liren"]
[Black "Carlsen, Magnus"]
[Result "1/2-1/2"]
[ECO "E60"]
[WhiteElo "2806"]
[BlackElo "2864"]
[Annotator "TA"]
[PlyCount "95"]
[EventDate "2022.05.19"]
[EventType "tourn"]
[EventCountry "NET"]
[SourceTitle "playchess.com"]
[Source "ChessBase"]
[SourceQuality "1"]
[TimeControl "900+10"]

{[%evp 9,95,8,31,23,25,10,14,19,20,19,41,37,36,40,47,28,94,33,31,29,32,18,18,20,37,36,37,19,36,36,35,35,35,35,35,37,36,36,36,36,47,34,41,37,55,33,41,41,42,41,41,42,54,55,52,54,54,0,56,0,57,57,56,50,50,33,50,50,50,50,58,47,54,54,75,75,74,77,154,153,139,111,122,0,117,0,118,0]} 1. c4 {[%emt 0:00:00]} g6 {[%emt 0:00:00]} 2. d4 {[%emt 0:00:13]} Nf6 {[%emt 0:00:03]} 3. Nf3 {[%emt 0:00:09]} Bg7 {[%emt 0:00:02]} 4. e3 {[%emt 0:00:00]} O-O {[%emt 0:00:09]} 5. Be2 {[%emt 0:00:01]} b6 {[%emt 0:00:24]} 6. O-O {[%emt 0:00:05] E60: King's Indian: Unusual lines and Fianchetto Variation without Nc3.} Bb7 {[%emt 0:00:01]} 7. Qc2 {[%emt 0:00:01]} e6 {[%emt 0:00:45]} 8. b4 {[%emt 0:00:03][%cal Bb2b4,Bb4b5][%mdl 32] The position is equal.} a5 {[%emt 0:00:20]} 9. b5 {[%emt 0:00:09]} d6 {[%emt 0:00:01]} 10. Nc3 {[%emt 0:00:12]} Nbd7 {[%emt 0:00:02]} 11. Ba3 {[%emt 0:02:35]} Re8 {[%emt 0:00:03] [#]} 12. Rad1 $146 {[%emt 0:00:01]} ({Predecessor:} 12. Nd2 e5 13. Bf3 Bxf3 14. Nxf3 exd4 15. exd4 Nf8 16. Rad1 Ne6 17. Qc1 Qd7 18. c5 {1-0 (38) Schitco,I (2462)-Strukova,K (1857) Schwarzach 2019}) 12... Qe7 {[%emt 0:01:45] [#]} (12... Rc8 $11 {remains equal.}) 13. Rfe1 {[%emt 0:00:32] White is more active.} (13. Ne5 $1 $16) 13... e5 $14 {[%emt 0:00:53]} 14. dxe5 {[%emt 0:03:31]} Nxe5 {[%emt 0:00:02]} 15. Nd5 {[%emt 0:01:15]} Bxd5 {[%emt 0:00:07]} (15... Nxd5 {with more complications.} 16. cxd5 Ng4 17. Bb2 Bxb2 18. Qxb2 Rac8) 16. cxd5 {[%emt 0:00:00]} Nxf3+ {[%emt 0:00:01]} 17. Bxf3 {[%emt 0:00:01]} Qd8 {[%emt 0:00:11]} 18. h4 {[%emt 0:00:47][%cal Bh2h4,Bh4h5][%mdl 32]} Nd7 {[%emt 0:00:21]} 19. h5 {[%emt 0:00:12]} Nc5 {[%emt 0:00:02]} 20. g3 {[%emt 0:00:12]} Qf6 {[%emt 0:00:02]} 21. Kg2 {[%emt 0:00:06]} Qc3 {[%emt 0:00:01]} 22. Qxc3 {[%emt 0:00:10]} Bxc3 {[%emt 0:00:00]} 23. Rh1 {[%emt 0:00:01]} Kg7 {[%emt 0:00:06]} 24. Rc1 {[%emt 0:00:21]} Be5 {[%emt 0:00:07]} 25. h6+ {[%emt 0:00:26]} Kf8 {[%emt 0:00:03]} 26. Rc4 {[%emt 0:00:09]} Re7 {[%emt 0:00:05]} 27. Bc1 {[%emt 0:00:12]} (27. Bxc5 $5 bxc5 28. Be2 $11) 27... Rae8 {[%emt 0:00:04]} 28. e4 {[%emt 0:00:26]} Bf6 {[%emt 0:00:02] Inhibits Bg5.} 29. Be3 {[%emt 0:00:14]} Kg8 {[%emt 0:00:07]} 30. Rd1 {[%emt 0:00:19]} Kf8 {[%emt 0:00:03]} 31. Kh3 {[%emt 0:00:38]} Kg8 {[%emt 0:00:06]} 32. Bg2 {[%emt 0:00:48]} Kf8 {[%emt 0:00:02]} 33. Bf3 {[%emt 0:00:57]} Kg8 $1 {[%emt 0:00:05]} 34. Kg2 {[%emt 0:00:25]} Kf8 {[%emt 0:00:01]} 35. Kf1 {[%emt 0:00:01]} Kg8 {[%emt 0:00:04]} 36. Bg2 {[%emt 0:00:07][%cal Bf3g2,Bg2h3,Bh3f1,Bf1d3,Bd3c2][%mdl 32]} Kf8 {[%emt 0:00:03]} 37. f3 {[%emt 0:00:13]} Kg8 {[%emt 0:00:20]} 38. Bh3 {[%emt 0:00:02]} Kf8 {[%emt 0:00:02]} 39. Kg2 {[%emt 0:00:07]} Kg8 {[%emt 0:00:11]} 40. Kf2 {[%emt 0:00:34]} Kf8 {[%emt 0:00:02]} 41. Bf1 {[%emt 0:00:05]} Kg8 {[%emt 0:00:02]} 42. Bd3 {[%emt 0:01:24]} Bh8 {[%emt 0:00:32]} 43. Bc2 {[%emt 0:00:16]} f5 {[%emt 0:00:03]} (43... Bb2 $142) 44. Bg5 $16 {[%emt 0:00:09]} Re5 {[%emt 0:00:08][%cal Rf5e4]} 45. Bf4 {[%emt 0:01:27]} R5e7 {[%emt 0:00:42][%cal Rf5e4]} 46. Bg5 {[%emt 0:00:31]} Re5 {[%emt 0:00:04][%cal Rf5e4]} 47. Bf4 {[%emt 0:00:50]} R5e7 {[%emt 0:00:21][%cal Rf5e4]} 48. Bg5 {[%emt 0:00:10] Weighted Error Value: White=0.13 (very precise) /Black=0.08 (flawless)} (48. exf5 $16 Re2+ 49. Kf1 gxf5 50. Rd2 Re1+ 51. Kf2 (51. Kg2 Rf8 $14)) 1/2-1/2

[Event "MCCT Chessable Masters 2022"]
[Site "Online"]
[Date "2022.05.16"]
[Round "13.2"]
[White "Hansen, Eric"]
[Black "Anton Guijarro, David"]
[Result "1-0"]
[ECO "C78"]
[WhiteElo "2606"]
[BlackElo "2691"]
[Annotator "TA"]
[PlyCount "89"]
[EventDate "2022.05.19"]
[EventType "tourn"]
[EventCountry "NET"]
[SourceTitle "playchess.com"]
[Source "ChessBase"]
[SourceQuality "1"]
[TimeControl "900+10"]

{[%evp 12,89,8,4,20,16,14,23,20,0,2,-12,0,0,17,18,18,-10,0,0,0,2,6,0,31,18,22,22,39,35,63,54,70,26,26,28,25,14,28,45,168,155,176,165,308,132,119,133,118,112,143,125,248,269,260,252,316,329,360,267,387,387,353,306,620,584,763,759,679,742,963,912,2107,2083,1863,1861,2218,1889,1712,1684]} 1. e4 {[%emt 0:00:00]} e5 {[%emt 0:00:00]} 2. Nf3 {[%emt 0:00:02]} Nc6 {[%emt 0:00:07]} 3. Bb5 {[%emt 0:00:04]} a6 {[%emt 0:00:14]} 4. Ba4 {[%emt 0:00:03]} Nf6 {[%emt 0:00:04]} 5. d3 {[%emt 0:00:04]} Bc5 {[%emt 0:00:04]} 6. O-O {[%emt 0:00:09]} d6 {[%emt 0:00:14]} 7. c3 {[%emt 0:00:09]} Ba7 {[%emt 0:00:14] C78: Ruy Lopez: Archangelsk and Möller Defences.} 8. Re1 {[%emt 0:01:13]} O-O {[%emt 0:00:05]} 9. h3 {[%emt 0:01:27]} h6 {[%emt 0:00:09] White has an edge.} 10. Bxc6 $5 {[%emt 0:01:07][%mdl 4] Leaves trodden paths.} bxc6 {[%emt 0:00:03][%cal Bb7c6,Bc6c5][%mdl 32]} 11. Be3 {[%emt 0:00:01] [#]} Bxe3 $146 {[%emt 0:00:30]} ({Predecessor:} 11... c5 12. Nbd2 Rb8 13. b4 Nd7 14. Nb3 Bb6 15. bxc5 dxc5 16. Nfd2 Qe7 17. Nc4 Nf6 {½-½ (42) Alekseev,E (2645)-Drygalov,A (2494) Ekaterinburg 2019}) 12. Rxe3 {[%emt 0:00:02]} Rb8 {[%emt 0:01:28]} 13. b3 {[%emt 0:00:05]} Re8 {[%emt 0:00:59]} 14. Na3 {[%emt 0:05:21]} c5 {[%emt 0:01:05]} 15. Nc4 {[%emt 0:00:25]} Be6 {[%emt 0:00:30]} 16. Ncd2 {[%emt 0:00:02]} Bd7 {[%emt 0:01:26]} 17. Rc1 {[%emt 0:00:42]} g6 {[%emt 0:05:28]} 18. d4 {[%emt 0:00:26]} cxd4 {[%emt 0:00:06]} 19. cxd4 {[%emt 0:00:01]} exd4 {[%emt 0:00:02]} 20. Nxd4 {[%emt 0:00:00]} Rb4 {[%emt 0:00:56]} 21. N4f3 {[%emt 0:01:50] White is more active.} Rb5 {[%emt 0:00:27]} (21... Nxe4 22. a3 Nxd2 23. Rxe8+ (23. axb4 Rxe3 24. fxe3 Nxf3+ 25. Qxf3 Be6 $16) 23... Bxe8 24. axb4 Nxf3+ 25. Qxf3 $16) 22. Qc2 {[%emt 0:01:54]} Rc5 {[%emt 0:00:16]} 23. Qb2 {[%emt 0:00:26]} Rxc1+ {[%emt 0:00:15]} 24. Qxc1 {[%emt 0:00:00]} Nh5 {[%emt 0:00:08]} 25. e5 {[%emt 0:00:50]} Nf4 {[%emt 0:00:42]} (25... g5 $14) 26. Qc4 $1 $18 {[%emt 0:00:12][%csl LRa6,LRf4]} Ne6 {[%emt 0:02:20]} 27. exd6 {[%emt 0:00:08]} ({Resist} 27. Qxa6 $6 d5 $14) 27... Bb5 {[%emt 0:00:21] [#]} (27... cxd6 $142 28. Ne4 (28. Qxa6 d5 $16) 28... Nc7) 28. dxc7 {[%emt 0:00:02]} (28. Qc3 $1 $18 {is the precise move to win.}) 28... Nxc7 $16 {[%emt 0:00:01]} 29. Rxe8+ {[%emt 0:00:19]} Nxe8 {[%emt 0:00:01]} 30. Qc3 {[%emt 0:00:20]} Nf6 {[%emt 0:00:08]} 31. a4 {[%emt 0:00:05]} Be2 {[%emt 0:00:07]} (31... Be8 $16 {keeps fighting.} 32. Ne5 Qd5) 32. Nd4 $18 {[%emt 0:00:10]} Bd1 {[%emt 0:00:02]} 33. Nc4 {[%emt 0:00:40] Nc6 is the strong threat.} Ne4 {[%emt 0:00:28]} 34. Qe3 {[%emt 0:00:07][%csl LRe4,LRh6]} Nd6 {[%emt 0:01:11]} 35. Ne5 {[%emt 0:00:49] And now Nec6 would win. Pair of Knights!} Qg5 {[%emt 0:00:09]} (35... Nf5 $142 36. Nxf5 gxf5 37. Qxh6 Bxb3 38. Qxa6 Kg7) 36. Qxg5 {[%emt 0:00:56]} hxg5 {[%emt 0:00:01][%mdl 4096] Endgame KBN-KNN} 37. Kf1 {[%emt 0:00:00]} Nf5 $2 {[%emt 0:00:17] [#]} (37... g4 38. hxg4 f6) 38. Nec6 {[%emt 0:00:15] White is clearly winning.} g4 {[%emt 0:00:19]} 39. Ke1 {[%emt 0:00:30]} gxh3 {[%emt 0:00:09]} 40. gxh3 {[%emt 0:00:01]} ({But not} 40. Kxd1 $2 h2 41. Nxf5 h1=Q+ 42. Kc2 gxf5 $19) 40... Bh5 {[%emt 0:00:17]} 41. Nxf5 {[%emt 0:00:20]} gxf5 {[%emt 0:00:00]} 42. Nb8 {[%emt 0:00:01]} a5 {[%emt 0:00:14]} 43. Nc6 {[%emt 0:00:02]} Bf3 {[%emt 0:00:05]} 44. Nxa5 {[%emt 0:00:03]} Bd5 {[%emt 0:00:03]} 45. Nc4 {[%emt 0:00:03] Weighted Error Value: White=0.15 (very precise) /Black=0.45} 1-0

[Event "MCCT Chessable Masters 2022"]
[Site "Online"]
[Date "2022.05.16"]
[Round "13.3"]
[White "Mamedyarov, Shakhriyar"]
[Black "Jones, Gawain C B"]
[Result "1/2-1/2"]
[ECO "E65"]
[WhiteElo "2770"]
[BlackElo "2669"]
[Annotator "TA"]
[PlyCount "141"]
[EventDate "2022.05.19"]
[EventType "tourn"]
[EventCountry "NET"]
[SourceTitle "playchess.com"]
[Source "ChessBase"]
[SourceQuality "1"]
[TimeControl "900+10"]

{[%evp 18,141,14,10,22,10,16,10,20,0,0,0,0,0,0,0,0,3,16,8,20,14,24,17,30,30,29,29,37,32,35,28,37,28,28,28,28,28,28,13,32,27,50,50,60,52,51,56,56,47,48,48,75,74,89,91,110,95,134,131,119,86,135,109,131,116,237,231,494,488,485,475,477,471,460,448,427,443,383,371,309,207,208,208,208,185,139,0,0,0,0,0,0,0,0,0,0,0,0,0,0,0,0,0,0,0,0,0,0,0,0,0,0,0,0,0,0,0,0,0,0,0,0,0,0,0]} 1. d4 {[%emt 0:00:00]} Nf6 {[%emt 0:00:00]} 2. c4 {[%emt 0:00:02]} g6 {[%emt 0:00:01]} 3. g3 {[%emt 0:00:08]} Bg7 {[%emt 0:00:02]} 4. Bg2 {[%emt 0:00:02]} O-O {[%emt 0:00:01]} 5. Nc3 {[%emt 0:00:02]} d6 {[%emt 0:00:01]} 6. Nf3 {[%emt 0:00:03]} c5 {[%emt 0:00:01]} 7. O-O {[%emt 0:00:05]} Nc6 {[%emt 0:00:01]} 8. dxc5 {[%emt 0:00:04]} dxc5 {[%emt 0:00:01]} 9. Bf4 {[%emt 0:00:00]} Nh5 {[%emt 0:00:26]} 10. Be3 {[%emt 0:00:10]} b6 $1 {[%emt 0:00:01][%mdl 4] is currently scoring better than 10...Nd4. E65: King's Indian: Fianchetto: 6...c5 7 0-0 without d5 by White.} 11. Qc1 {[%emt 0:00:05]} Bb7 {[%emt 0:00:04]} 12. Bh6 {[%emt 0:00:05]} Qe8 {[%emt 0:00:03]} 13. g4 {[%emt 0:00:08]} Nf6 {[%emt 0:00:28] [#]} 14. h3 $146 {[%emt 0:00:01]} ({Predecessor:} 14. Bxg7 Kxg7 15. h3 e5 16. Rd1 Qe6 17. Nd5 Rad8 18. Ng5 Qd6 19. e3 h6 20. Nxf6 Qxf6 21. Ne4 Rxd1+ 22. Qxd1 Qe7 23. Nc3 f5 24. gxf5 gxf5 {½-½ (24) Rulfs,E (2086)-Cvak,R (2195) LSS email 2016}) 14... Rd8 {[%emt 0:00:29]} 15. Qe3 {[%emt 0:00:04]} Nd4 {[%emt 0:01:23]} 16. Bxg7 {[%emt 0:00:27]} Kxg7 {[%emt 0:00:36]} 17. Qe5 {[%emt 0:00:34] Threatens to win with g5.} Nc6 {[%emt 0:02:15]} 18. Qg3 {[%emt 0:00:07]} Rd7 {[%emt 0:01:27]} 19. Rad1 {[%emt 0:01:31]} Rxd1 {[%emt 0:00:40]} 20. Rxd1 {[%emt 0:00:04]} Qb8 {[%emt 0:00:02] Prevents Ne5.} 21. g5 {[%emt 0:01:19]} Nh5 {[%emt 0:00:16]} 22. Qxb8 {[%emt 0:00:03]} Rxb8 {[%emt 0:00:05]} 23. e3 {[%emt 0:00:11]} Kf8 $1 {[%emt 0:01:05]} 24. b3 {[%emt 0:02:12]} Ng7 {[%emt 0:00:18]} 25. Nb5 {[%emt 0:00:13]} Ne6 {[%emt 0:00:36]} 26. h4 {[%emt 0:00:09]} Rd8 {[%emt 0:03:17]} 27. Rxd8+ {[%emt 0:00:20]} Nexd8 {[%emt 0:00:02]} 28. Ne1 {[%emt 0:00:31]} Ke8 {[%emt 0:00:10]} 29. f4 {[%emt 0:00:10]} Kd7 {[%emt 0:00:16]} 30. Nd3 {[%emt 0:00:16]} f6 {[%emt 0:00:18]} 31. Kf2 {[%emt 0:00:17]} Ba6 {[%emt 0:00:46]} 32. Bh3+ {[%emt 0:00:43]} f5 {[%emt 0:00:11]} 33. Nc3 {[%emt 0:00:02]} e6 {[%emt 0:00:06]} 34. h5 {[%emt 0:00:29]} Nf7 {[%emt 0:00:34]} 35. Bg2 {[%emt 0:01:08]} Nb4 {[%emt 0:00:29]} 36. Nxb4 {[%emt 0:01:23] White is more active.} cxb4 $16 {[%emt 0:00:01][%mdl 4096] Endgame KBN-KBN} 37. Ne2 {[%emt 0:00:56]} gxh5 {[%emt 0:01:14]} 38. Kg3 {[%emt 0:00:04]} Bc8 {[%emt 0:00:54]} 39. Kh4 {[%emt 0:00:08]} Ke7 {[%emt 0:00:18]} (39... Kd6 $142) 40. Kxh5 {[%emt 0:00:37]} Bd7 {[%emt 0:00:06]} 41. Nd4 {[%emt 0:00:24]} a5 {[%emt 0:00:11]} (41... Kf8 $16 {keeps fighting.}) 42. e4 $18 {[%emt 0:00:46]} Nh8 $2 {[%emt 0:01:13]} (42... e5 43. Nxf5+ Kf8) 43. exf5 {[%emt 0:00:38]} exf5 {[%emt 0:00:03]} 44. Kh6 {[%emt 0:00:59]} Ng6 {[%emt 0:00:02]} 45. Kxh7 {[%emt 0:01:59]} Nxf4 {[%emt 0:00:03] [#]} 46. g6 $1 {[%emt 0:00:00]} Kd6 {[%emt 0:00:17]} (46... Nxg2 $2 47. g7 Nf4 48. g8=Q) 47. Bf3 {[%emt 0:00:55]} (47. g7 Nh5 48. Kg6 (48. Nb5+ Ke5 $16) 48... Nxg7 $18) 47... Nxg6 {[%emt 0:00:22]} 48. Kxg6 {[%emt 0:00:00]} Ke5 {[%emt 0:00:01]} 49. Ne2 {[%emt 0:00:22]} f4 {[%emt 0:00:47]} 50. Kg5 {[%emt 0:00:15]} Bf5 {[%emt 0:00:04]} 51. Nxf4 {[%emt 0:00:11] Ng6+ is the strong threat.} Bb1 {[%emt 0:00:03] [#]} 52. Bd1 {[%emt 0:01:11]} (52. Bc6 $1 $16) 52... Kd4 $11 {[%emt 0:00:33] The position is equal.} 53. Ne6+ {[%emt 0:01:13]} Kc3 {[%emt 0:00:02]} 54. Nc7 {[%emt 0:00:03]} Bxa2 {[%emt 0:00:18]} 55. Nd5+ {[%emt 0:00:04]} Kd2 {[%emt 0:00:21]} 56. Nxb6 {[%emt 0:00:01]} Kxd1 {[%emt 0:00:06] KB-KN} 57. c5 {[%emt 0:00:10]} Bxb3 {[%emt 0:00:14]} 58. c6 {[%emt 0:00:13]} Be6 {[%emt 0:00:09] Strongly threatening ...b3.} 59. Kf6 {[%emt 0:00:06]} Bh3 {[%emt 0:00:18] White must now prevent ...b3.} 60. Nc4 {[%emt 0:00:16]} b3 {[%emt 0:00:09] Hoping for ...Kc1.} (60... a4 $5 61. Nb2+ Kc2 62. Nxa4 Kb3 $11) 61. Ke5 $1 {[%emt 0:00:17]} Kc1 {[%emt 0:00:40]} (61... a4 $5 62. Nb2+ Kc2 63. Nxa4 b2 64. Nxb2 Kxb2 $11) 62. Kd4 {[%emt 0:00:03]} (62. c7 b2 63. Nb6 b1=Q $19) 62... b2 {[%emt 0:00:14]} 63. Na3 {[%emt 0:00:01]} (63. Nxb2 {gets mated.} Kxb2 64. Ke4 a4 65. Kf3 a3 66. Kg3 Bc8 67. Kh4 a2 68. Kh5 a1=Q 69. Kg6 Qg1+ 70. Kf7 Qg5 71. c7 Kc3 72. Kf8 Qf6+ 73. Kg8 Qe7 74. Kh8 Qf8+ 75. Kh7 Bf5#) 63... a4 {[%emt 0:00:15]} 64. Kc3 {[%emt 0:00:10]} (64. c7 b1=Q 65. Kc5 Qf5+ 66. Kb4 Qf4+ 67. Kc5 Qf8+ 68. Kd5 Qxa3 69. Kc6 Qc3+ 70. Kd6 a3 71. Ke7 Qxc7+ 72. Kf6 a2 73. Kg6 a1=Q 74. Kh6 Qf6+ 75. Kh5 Qh7#) 64... Bg2 {[%emt 0:00:06]} 65. c7 {[%emt 0:00:02]} Bh3 {[%emt 0:00:01]} 66. Kb4 {[%emt 0:00:04]} Bd7 {[%emt 0:00:01]} 67. Kc3 {[%emt 0:00:03]} b1=N+ {[%emt 0:00:24]} 68. Nxb1 {[%emt 0:00:03]} Kxb1 {[%emt 0:00:01]} 69. Kb4 {[%emt 0:00:03]} Kb2 {[%emt 0:00:02] aiming for ...a3.} 70. c8=Q {[%emt 0:00:07]} Bxc8 {[%emt 0:00:01]} 71. Kxa4 {[%emt 0:00:01] Black defended with fortune.  Weighted Error Value: White=0.07 (flawless) /Black=0.14 (very precise)} 1/2-1/2

[Event "MCCT Chessable Masters 2022"]
[Site "Online"]
[Date "2022.05.16"]
[Round "13.4"]
[White "Van Foreest, Jorden"]
[Black "Harikrishna, Pentala"]
[Result "1-0"]
[ECO "C92"]
[WhiteElo "2715"]
[BlackElo "2705"]
[Annotator "TA"]
[PlyCount "101"]
[EventDate "2022.05.19"]
[EventType "tourn"]
[EventCountry "NET"]
[SourceTitle "playchess.com"]
[Source "ChessBase"]
[SourceQuality "1"]
[TimeControl "900+10"]

{[%evp 29,101,7,23,8,31,-1,0,-18,-10,-24,-12,-13,43,51,45,42,45,37,46,43,50,44,36,45,93,64,68,71,73,71,108,58,73,52,45,43,54,5,10,0,0,11,8,0,0,0,0,0,0,0,0,0,0,0,0,0,0,0,0,0,37,0,0,0,0,0,0,0,0,0,12844,12844,12850,12850]} 1. e4 {[%emt 0:00:00]} e5 {[%emt 0:00:00]} 2. Nf3 {[%emt 0:00:03]} Nc6 {[%emt 0:00:03]} 3. Bb5 {[%emt 0:00:03]} a6 {[%emt 0:00:03]} 4. Ba4 {[%emt 0:00:02]} Nf6 {[%emt 0:00:03]} 5. O-O {[%emt 0:00:02]} Be7 {[%emt 0:00:06]} 6. Re1 {[%emt 0:00:03]} b5 {[%emt 0:00:09]} 7. Bb3 {[%emt 0:00:04]} O-O {[%emt 0:00:03]} 8. d3 {[%emt 0:00:18]} d6 {[%emt 0:00:41]} 9. c3 {[%emt 0:00:14]} Na5 {[%emt 0:01:29]} 10. Bc2 {[%emt 0:00:06]} c5 {[%emt 0:00:05]} 11. Nbd2 {[%emt 0:00:16]} Nc6 {[%emt 0:00:10]} 12. h3 {[%emt 0:00:11]} Re8 {[%emt 0:00:09]} 13. a4 {[%emt 0:00:23]} Bb7 {[%emt 0:00:09]} 14. Nf1 {[%emt 0:00:15]} h6 {[%emt 0:00:27]} 15. Ne3 {[%emt 0:01:09]} Bf8 {[%emt 0:00:10]} 16. Bb3 {[%emt 0:00:06] C92: Closed Ruy Lopez: 9...Be6, Karpov and Flohr-Zaitsev Variations.} Ne7 {[%emt 0:00:52] [#]} 17. Bd2 $146 {[%emt 0:01:23]} ({Predecessor:} 17. Qe2 Ng6 18. Nd5 Bxd5 19. exd5 e4 20. dxe4 Rxe4 21. Qf1 Rxe1 22. Qxe1 Qd7 23. axb5 Re8 24. Qd1 axb5 25. c4 {0-1 (44) Blake,J-Spencer,E Stratford-upon-Avon 1925}) 17... Ng6 {[%emt 0:00:22][%cal Oc5c4]} 18. axb5 {[%emt 0:00:16] The position is equal.} axb5 {[%emt 0:00:02]} 19. Rxa8 {[%emt 0:00:01]} Qxa8 {[%emt 0:00:21]} 20. c4 {[%emt 0:00:20]} Bc6 {[%emt 0:01:35]} ({Black should try} 20... Nf4 $11 21. Qc2 (21. cxb5 Nxd3 22. Bxf7+ Kxf7 $15) 21... b4) 21. cxb5 $14 {[%emt 0:00:11]} Bxb5 {[%emt 0:00:03] [#]} 22. Bxf7+ $1 {[%emt 0:00:32]} Kxf7 {[%emt 0:00:02]} 23. Qb3+ {[%emt 0:00:02]} d5 $1 {[%emt 0:00:35]} 24. Qxb5 {[%emt 0:00:02]} Rb8 {[%emt 0:00:01]} 25. Qa5 {[%emt 0:00:01]} Qxa5 {[%emt 0:03:15]} 26. Bxa5 {[%emt 0:00:02]} c4 {[%emt 0:00:04]} (26... dxe4 $14 27. dxe4 Rxb2) 27. Nxd5 {[%emt 0:05:26]} Nxd5 {[%emt 0:00:59]} 28. exd5 {[%emt 0:00:02]} cxd3 {[%emt 0:00:40]} 29. Bc3 {[%emt 0:00:18]} (29. Nxe5+ Nxe5 30. Rxe5 Rxb2 $11) 29... Bb4 {[%emt 0:01:41]} 30. g3 {[%emt 0:03:29]} (30. Nxe5+ $2 Nxe5 31. Kf1 Bxc3 32. bxc3 d2 $1 $19) (30. Bxe5 $2 Re8 31. Bc3 Rxe1+ 32. Nxe1 Bxc3 33. Nxd3 Bd4 $19) (30. Kf1 $16) 30... Rb5 {[%emt 0:00:41]} 31. h4 {[%emt 0:01:00]} ({Avoid the trap} 31. Nxe5+ $2 Nxe5 32. Bxb4 (32. Rxe5 $2 Bxc3 33. Rf5+ Kg6 $19) 32... Rxb4 $19) 31... Bxc3 {[%emt 0:00:13]} 32. bxc3 {[%emt 0:00:02]} Rxd5 {[%emt 0:00:01][%mdl 4096] Endgame KRN-KRN} 33. h5 {[%emt 0:00:06]} (33. Nd2 $14 {is more appropriate.}) 33... Ne7 $11 {[%emt 0:00:01]} 34. Rxe5 {[%emt 0:01:21]} Kf6 {[%emt 0:00:37]} 35. Re1 {[%emt 0:00:29]} Rxh5 {[%emt 0:00:31]} ({Don't do} 35... d2 36. Rd1 $16) 36. Rd1 {[%emt 0:00:01]} Rd5 {[%emt 0:00:08]} 37. Nd4 {[%emt 0:01:07]} Nf5 {[%emt 0:00:36]} 38. Rxd3 {[%emt 0:00:02] aiming for Rf3.} Nxd4 {[%emt 0:00:01]} 39. cxd4 {[%emt 0:00:01] KR-KR} Kf5 {[%emt 0:00:20]} 40. f3 {[%emt 0:00:54]} h5 {[%emt 0:01:06]} 41. Kf2 {[%emt 0:00:01]} Rd8 {[%emt 0:01:49]} 42. d5 {[%emt 0:00:02]} Ke5 {[%emt 0:00:01]} 43. f4+ {[%emt 0:00:02]} Kd6 {[%emt 0:00:17]} 44. Kf3 {[%emt 0:01:17] And now Ke4 would win.} Re8 {[%emt 0:00:47]} 45. Rd1 {[%emt 0:00:02]} g6 {[%emt 0:00:12]} 46. Kg2 {[%emt 0:00:36] Kh3 is the strong threat.} g5 {[%emt 0:00:36]} 47. fxg5 {[%emt 0:00:21] Threatens to win with Kh3.} Rg8 {[%emt 0:00:02]} 48. Kh3 {[%emt 0:00:06] Black must now prevent Kh4.} Rxg5 {[%emt 0:00:01]} 49. Rd4 {[%emt 0:00:03]} Ke5 $2 {[%emt 0:00:06][%mdl 8192] [#]} (49... Re5 $11) 50. Kh4 $1 $18 {[%emt 0:00:07]} Rf5 {[%emt 0:01:04]} 51. Rf4 $1 {[%emt 0:00:06] Weighted Error Value: White=0.10 (very precise) /Black=0.10 (very precise)} 1-0